[Event "Indian Blitz Championship 2023"]
[Site "Nashik"]
[Date "2024.03.07"]
[Round "4.5"]
[White "Dixit, Nikhil"]
[Black "Raja Rithvik R"]
[Result "0-1"]
[ECO "B51"]
[WhiteElo "2334"]
[BlackElo "2532"]
[Annotator "TA"]
[PlyCount "158"]
[EventDate "2024.03.07"]
[EventType "blitz"]
[EventCountry "IND"]
[SourceTitle "playchess.com"]
[Source "ChessBase"]
[SourceQuality "1"]
[TimeControl "180+2"]

{[%evp 9,158,14,18,9,20,18,14,10,8,-30,-26,-32,-29,-33,69,68,69,50,127,64,60,63,125,130,135,70,70,0,37,0,0,-81,10,-12,-10,-25,-20,-29,-25,-42,-18,-37,-13,-13,-20,-68,-76,-100,-98,-104,-101,-104,-104,-105,-106,-139,-139,-139,-139,-468,-461,-485,-497,-486,-469,-537,-530,-554,-548,-510,-437,-611,-462,-524,-524,-1438,-492,-1048,-1047,-29956,-29959,-2800,-357,-29970,-29971,-29971,-29971,-29964,-29964,-29949,-12083,-5302,-286,-29966,-29966,-29968,-29969,-29974,-6299,-5202,-5093,-29970,-29973,-29989,-29974,-29975,-29974,-29974,-29975,-29993,-29983,-29983,-29984,-29984,-29985,-29984,-29985,-29987,-29988,-29988,-29989,-29989,-29990,-29990,-29991,-29991,-29992,-29992,-29992,-29992,-29992,-29992,-29993,-29993,-29993,-29993,-29990,-29992,-29993,-29994,-29990,-29990,-29991,-29991,-29992,-29992,-29991,-29991,-29992,-29992,-29993]} 1. e4 {[%emt 0:00:04]} c5 {[%emt 0:00:00]} 2. Nf3 {[%emt 0:00:02]} d6 {[%emt 0:00:01]} 3. Bb5+ {[%emt 0:00:04]} Nd7 {[%emt 0:00:02]} 4. O-O {[%emt 0:00:04]} a6 {[%emt 0:00:02]} 5. Bd3 {[%emt 0:00:01]} Ngf6 {[%emt 0:00:03]} 6. c3 {[%emt 0:00:02]} b5 {[%emt 0:00:14]} 7. Re1 {[%emt 0:00:01]} e6 {[%emt 0:00:10]} 8. a4 {[%emt 0:00:03] Die Stellung ist ausgeglichen.} Bb7 {[%emt 0:00:03]} 9. axb5 {[%emt 0:00:14]} axb5 {[%emt 0:00:01]} 10. Rxa8 {[%emt 0:00:03]} Qxa8 {[%emt 0:00:01]} 11. Na3 {[%emt 0:00:12]} Bxe4 {[%emt 0:01:02]} (11... b4 $15 12. cxb4 cxb4) 12. Bxe4 $14 {[%emt 0:00:30]} (12. Bxb5 Be7 $15) 12... Nxe4 {[%emt 0:00:01]} 13. Nxb5 {[%emt 0:00:02]} Qa5 {[%emt 0:00:53] Gegen Nc7+ gerichtet.} (13... Qc6 $14) 14. Qb3 {[%emt 0:00:23]} (14. c4 $16 Nef6 15. d4) 14... d5 {[%emt 0:00:18][%cal Bd6d5,Bd5c4][%mdl 32] Droht stark ...c4.} 15. d3 {[%emt 0:00:12]} c4 {[%emt 0:00:17]} 16. dxc4 $16 {[%emt 0:00:12]} Nec5 {[%emt 0:00:02]} 17. Qc2 {[%emt 0:01:01]} (17. Qd1 $1 $16 dxc4 18. Na3) 17... dxc4 $14 {[%emt 0:00:01]} 18. Nbd4 {[%emt 0:00:02]} ({Günstiger ist} 18. Nfd4 $14 Nd3 19. Rd1 Nxc1 20. Rxc1 (20. Qxc1 Bc5 $11)) 18... Nd3 {[%emt 0:00:10]} 19. Rf1 {[%emt 0:00:05]} Qd5 {[%emt 0:00:08]} 20. Be3 {[%emt 0:00:09]} (20. b4 $11) 20... Be7 {[%emt 0:00:05]} ({Vorzuziehen ist} 20... e5 $1 $17 {[%cal Re5d4]} 21. Nf5 g6) 21. b3 {[%emt 0:00:01]} O-O {[%emt 0:00:04]} 22. bxc4 {[%emt 0:00:03]} Qxc4 {[%emt 0:00:00]} 23. Nd2 {[%emt 0:00:07]} Qa6 {[%emt 0:00:01]} 24. Ne4 {[%emt 0:00:05]} N3c5 {[%emt 0:00:04]} 25. Nxc5 {[%emt 0:00:02]} Nxc5 {[%emt 0:00:01][%cal Bd7c5,Bc5e4,Be4c3][%mdl 32]} 26. h3 {[%emt 0:00:01]} Rc8 {[%emt 0:00:01]} 27. Qd2 {[%emt 0:00:02]} (27. Rb1 $11 {scheint genauer.}) 27... Ne4 $15 {[%emt 0:00:01][%csl LRc3,LRd2]} 28. Qb2 {[%emt 0:00:01] Schwarz muss nun Ra1 beachten.} Nxc3 {[%emt 0:00:03] Schwarz hat aktiveres Spiel.} 29. Rc1 {[%emt 0:00:02]} Nd5 {[%emt 0:00:00]} 30. Rxc8+ {[%emt 0:00:02]} Qxc8 {[%emt 0:00:01]} 31. Bd2 {[%emt 0:00:01]} Bf6 {[%emt 0:00:03]} 32. Be3 {[%emt 0:00:03]} Nxe3 {[%emt 0:00:02]} 33. fxe3 $17 {[%emt 0:00:01][%mdl 4096] Endspiel. KQB-KQN} g6 {[%emt 0:00:02]} 34. Qe2 $2 {[%emt 0:00:01][%mdl 8192] Davon erholt Weiß sich nicht mehr.} (34. Qc2 $17 {leistet mehr Widerstand.} Qa8 35. Nf3) 34... Qc1+ $19 {[%emt 0:00:02]} 35. Kf2 {[%emt 0:00:03]} Bxd4 {[%emt 0:00:04]} 36. exd4 {[%emt 0:00:01] KQ-KQ} Qf4+ {[%emt 0:00:01]} 37. Kg1 {[%emt 0:00:02]} Qxd4+ {[%emt 0:00:01]} 38. Kh1 {[%emt 0:00:00]} Qa1+ {[%emt 0:00:01]} 39. Kh2 {[%emt 0:00:02]} Qf6 {[%emt 0:00:01]} 40. Qb5 {[%emt 0:00:03]} Kg7 {[%emt 0:00:01]} 41. Qd7 {[%emt 0:00:02]} e5 {[%emt 0:00:01] Droht ...e4 und aus.} 42. Qe8 {[%emt 0:00:01]} Qe6 {[%emt 0:00:02]} (42... Qf4+ $142 43. Kg1 g5) 43. Qb5 {[%emt 0:00:03]} (43. Qd8 $142 Qc4 44. Qe7) 43... e4 {[%emt 0:00:02]} 44. Qb2+ {[%emt 0:00:01]} Qf6 {[%emt 0:00:00]} 45. Qe2 {[%emt 0:00:01]} Qf4+ $2 {[%emt 0:00:02]} (45... Qe5+ 46. Kg1 e3) 46. Kh1 $2 {[%emt 0:00:02]} (46. g3 $19 Qe5 47. Qe3) 46... e3 {[%emt 0:00:02]} 47. Kg1 {[%emt 0:00:02]} h5 {[%emt 0:00:03]} 48. Qb2+ {[%emt 0:00:02]} Kh7 {[%emt 0:00:01]} 49. Qe2 {[%emt 0:00:01]} Qg3 {[%emt 0:00:03] ( -> ...Kh6)} 50. Qf1 {[%emt 0:00:02]} f5 $2 {[%emt 0:00:03]} (50... Kg7 51. Qa1+ f6 52. Qa7+ Kh6) 51. Qe2 $2 {[%emt 0:00:01]} (51. Qc4 $19 Qd6 52. h4) 51... Kh6 {[%emt 0:00:02]} 52. Qb2 {[%emt 0:00:04]} Kg5 {[%emt 0:00:11]} 53. Qg7 {[%emt 0:00:10]} Qf2+ {[%emt 0:00:02]} (53... Qe1+ $142 54. Kh2 Qb4 55. Qg8 Qd6+ 56. Kh1 e2 57. h4+ Kf4 (57... Kxh4 58. Qc4+ Kg5 59. Qxe2 $19) 58. Qc4+ Ke3 59. Qc3+ Qd3 60. Qe5+ Qe4 61. Qg3+ Kd2 62. Qd6+ Qd3 63. Qf4+ Kc2 64. Qa4+ Qb3 65. Qc6+ Kb2 (65... Kb1 {führt zum Matt.} 66. Qe8 Qd1+ 67. Kh2 e1=Q 68. Qb5+ Kc1 69. Qc5+ Kb2 70. Qb5+ Qb3 71. Qxb3+ Kxb3 72. g3 Qf2+ 73. Kh1 Ka2 74. g4 hxg4 75. h5 g3 76. hxg6 Qh2#) 66. Qe8 Qd1+ 67. Kh2 e1=Q (67... e1=R 68. Qh8+ Kc2 69. Qc8+ Kd2 70. Qd7+ Ke3 71. Qe6+ Kf2 72. Qb6+ Kf1 73. Qg1+ Ke2 74. Qc5 Qd3 75. Qe5+ Qe4 76. Qb5+ Kf2 77. Qb2+ Kf1 78. Qb5+ Re2 79. Qb1+ Qxb1 80. Kh3 Kf2 81. Kh2 Qg1+ 82. Kh3 Qxg2#) 68. Qh8+ Kc2 69. Qc8+ Qc3 70. Qxc3+ Kxc3 71. Kg3 Qf1 72. Kh3 f4 73. Kh2 Kb3 (73... Qf2 74. Kh1 Kd4 75. Kh2 f3 76. Kh3 Qxg2#) (73... Qe1 {wird mattgesetzt.} 74. g3 Qe2+ 75. Kh3 f3 76. g4 Qg2#) 74. g4 hxg4 75. h5 g3#) 54. Kh2 {[%emt 0:00:02]} Qf4+ $1 {[%emt 0:00:00]} 55. Kh1 {[%emt 0:00:01]} Qe4 {[%emt 0:00:02] Schwarz setzt Matt.} 56. Qf8 {[%emt 0:00:04]} e2 {[%emt 0:00:04]} 57. Qd8+ {[%emt 0:00:01]} Kf4 {[%emt 0:00:03]} 58. Qc7+ {[%emt 0:00:04]} Ke3 {[%emt 0:00:02]} 59. Qc3+ {[%emt 0:00:02]} Qd3 {[%emt 0:00:01]} 60. Qe5+ {[%emt 0:00:01]} Kd2 {[%emt 0:00:01]} 61. Qb2+ {[%emt 0:00:01]} Qc2 {[%emt 0:00:02]} 62. Qd4+ {[%emt 0:00:02] [#]} Kc1 $1 {[%emt 0:00:00]} 63. Qa1+ {[%emt 0:00:04] [#]} Qb1 $1 {[%emt 0:00:01]} 64. Qc3+ {[%emt 0:00:02]} Kd1 {[%emt 0:00:01]} 65. Qd4+ {[%emt 0:00:01]} Kc2+ {[%emt 0:00:02]} 66. Kh2 {[%emt 0:00:01]} e1=Q {[%emt 0:00:02]} 67. Qc4+ {[%emt 0:00:01]} Kd2 {[%emt 0:00:01]} 68. Qd4+ {[%emt 0:00:01]} Qd3 {[%emt 0:00:01]} 69. Qb2+ {[%emt 0:00:01]} Ke3 {[%emt 0:00:05]} 70. Qe5+ {[%emt 0:00:02]} Qe4 {[%emt 0:00:02]} 71. Qc5+ {[%emt 0:00:01]} Kd3 {[%emt 0:00:02]} 72. Qa3+ {[%emt 0:00:01]} Kd4 {[%emt 0:00:01]} 73. Qd6+ {[%emt 0:00:03]} Qd5 {[%emt 0:00:01]} 74. Qf4+ {[%emt 0:00:02]} Qee4 {[%emt 0:00:01]} 75. Qd2+ {[%emt 0:00:02]} Ke5 {[%emt 0:00:00]} 76. Qc3+ {[%emt 0:00:00]} Ke6 {[%emt 0:00:01][%csl Gd5][%cal Re4g2]} 77. Qc8+ {[%emt 0:00:02]} Kf7 {[%emt 0:00:02][%csl Gd5][%cal Re4g2]} 78. Qc7+ {[%emt 0:00:15]} Qe7 {[%emt 0:00:01]} 79. Qf4 {[%emt 0:00:00]} Qed6 {[%emt 0:00:01] Gewichteter Fehlerwert: Weiß=0.62/Schwarz=0.35.  Verlustzug:     	Weiß=1     	---        Fehler:       	Weiß=6     	Schwarz=5     Ungenau:       	Weiß=6     	Schwarz=1     OK:         	Weiß=9     	Schwarz=14    Bester:       	Weiß=2     	Schwarz=4} 0-1

[Event "Indian Blitz Championship 2023"]
[Site "Nashik"]
[Date "2024.03.07"]
[Round "4.6"]
[White "Jinan Jomon"]
[Black "Kushagra Mohan"]
[Result "0-1"]
[ECO "A28"]
[WhiteElo "2380"]
[BlackElo "2351"]
[Annotator "TA"]
[PlyCount "186"]
[EventDate "2024.03.07"]
[EventType "blitz"]
[EventCountry "IND"]
[SourceTitle "playchess.com"]
[Source "ChessBase"]
[SourceQuality "1"]
[TimeControl "180+2"]

{[%evp 11,186,8,15,-12,31,18,30,-8,41,21,51,48,131,80,194,173,189,187,191,114,123,90,94,72,92,89,91,110,172,143,326,322,317,197,201,201,687,693,660,685,1591,615,736,742,733,566,1380,2067,1866,1764,1415,1255,1258,1245,1307,1261,1030,1018,933,934,29971,322,470,471,432,441,431,266,323,185,794,785,924,920,680,576,1259,1223,917,639,4935,0,0,0,0,0,4964,4964,29981,29982,29982,29983,29981,0,6041,0,29979,80,0,0,0,0,0,0,0,0,0,0,0,0,0,0,0,-20,-21,-20,-20,-33,-33,-1239,-1293,-1295,-1280,-1193,-1182,-1182,-1182,-1179,-1175,-1122,0,-915,-767,-760,-73,-116,-116,-103,-109,-1182,-1182,-1167,-887,-1682,-1673,-1673,-1659,-1244,-774,-1701,-1348,-1095,-760,-29991,-752,-752,-752,-742,-131,-712,0,-679,0,-672,-592,-29981,-29982,-29982,-29983,-29989,-29988,-29987,-29985,-29985,-29986,-29987,-29988]} 1. c4 {[%emt 0:00:01]} e5 {[%emt 0:00:00]} 2. Nc3 {[%emt 0:00:03]} Nf6 {[%emt 0:00:01]} 3. Nf3 {[%emt 0:00:01]} Nc6 {[%emt 0:00:00]} 4. e3 {[%emt 0:00:02]} Bb4 {[%emt 0:00:05]} 5. Qc2 {[%emt 0:00:03]} Bxc3 {[%emt 0:00:02]} 6. Qxc3 {[%emt 0:00:03]} Qe7 {[%emt 0:00:00]} 7. d4 {[%emt 0:00:07]} e4 {[%emt 0:00:00]} 8. Ng1 {[%emt 0:00:04]} d5 {[%emt 0:00:01]} 9. Ne2 {[%emt 0:00:10] White has an edge.} h5 {[%emt 0:00:11]} (9... dxc4 $11 10. Qxc4 Be6) 10. h4 {[%emt 0:00:22]} Bg4 {[%emt 0:00:19]} 11. Nf4 {[%emt 0:00:03]} O-O-O {[%emt 0:00:12]} (11... Qd7 $14) 12. Bd2 {[%emt 0:00:22]} (12. c5 $142 $1) 12... Be6 {[%emt 0:00:25]} (12... dxc4 $16 {was worth a try.} 13. Bxc4 Rdg8) 13. b4 $18 {[%emt 0:00:20][%cal Bb2b4,Bb4b5][%mdl 32]} dxc4 {[%emt 0:00:18]} 14. b5 $1 {[%emt 0:00:06]} (14. Bxc4 Bxc4 15. Qxc4 Qe8 $14) 14... Nb8 {[%emt 0:00:01][%cal Bc6b8,Bb8d7,Bd7b6][%mdl 32]} 15. Nxe6 {[%emt 0:00:17]} (15. Bxc4 $18 Bxc4 16. Qxc4) 15... fxe6 $16 {[%emt 0:00:06]} 16. Bxc4 {[%emt 0:00:09] Strongly threatening Qa5.} Nbd7 {[%emt 0:00:02]} 17. Rc1 {[%emt 0:00:07][%cal Oc4e6]} Nb6 {[%emt 0:00:06] [#]} 18. Bxe6+ $1 {[%emt 0:00:14]} Kb8 {[%emt 0:00:00]} 19. Bb3 {[%emt 0:00:06] This pair of bishops is nice.} Nfd5 {[%emt 0:00:06]} (19... Rdf8 $16) 20. Qc5 {[%emt 0:00:04]} Qf6 {[%emt 0:00:21]} (20... Rd6 $16 21. a4 Nd7) 21. a4 $18 {[%emt 0:00:06]} Rhf8 {[%emt 0:00:00]} 22. Rf1 {[%emt 0:00:03] a5 is the strong threat.} Qxh4 {[%emt 0:00:05]} 23. a5 {[%emt 0:00:06]} Rf6 {[%emt 0:00:02]} (23... Na8 24. a6 (24. Bxd5 Rf5 $16) 24... Nab6 25. axb7 Rf7) 24. axb6 {[%emt 0:00:04]} axb6 {[%emt 0:00:01]} 25. Qa3 {[%emt 0:00:04]} Rdf8 {[%emt 0:00:09][%cal Rf6f2]} 26. Kd1 {[%emt 0:00:19]} (26. Ra1 $142 Kc8 27. Bxd5) 26... Qg5 {[%emt 0:00:33]} 27. Ra1 {[%emt 0:00:06][%csl Ga1][%cal Ra3a8]} Kc8 {[%emt 0:00:07][%cal Bb8c8,Bc8d7,Bd7e8,Be8d8][%mdl 32]} 28. Kc2 {[%emt 0:00:09]} Rxf2 {[%emt 0:00:03]} 29. Qxf8+ {[%emt 0:00:03]} Rxf8 {[%emt 0:00:02]} 30. Rxf8+ {[%emt 0:00:02]} Kd7 {[%emt 0:00:00]} 31. Raf1 {[%emt 0:00:07]} Nf6 {[%emt 0:00:04]} 32. Rf7+ {[%emt 0:00:04]} Ke8 {[%emt 0:00:07]} 33. Ra1 {[%emt 0:00:01][%cal Ra1a8]} Nd5 {[%emt 0:00:00]} 34. Bxd5 {[%emt 0:00:04]} Qxd5 {[%emt 0:00:01]} 35. Rxc7 {[%emt 0:00:02] White threatens Ra8+ and mate.} Kd8 {[%emt 0:00:05]} 36. Rc3 $2 {[%emt 0:00:01]} (36. Rxg7 Qc4+ 37. Kd1 Qf1+ 38. Be1 Qd3+ 39. Kc1 Qxe3+ 40. Bd2 Qg1+ 41. Kb2 Qxd4+ 42. Bc3 Qxg7 43. Bxg7) 36... Qxb5 {[%emt 0:00:03]} (36... Kd7 {was necessary.} 37. Rf1 (37. Ra7 h4 $18) 37... h4) 37. Rb1 {[%emt 0:00:03]} Qa4+ {[%emt 0:00:05]} 38. Kc1 {[%emt 0:00:01]} b5 {[%emt 0:00:01]} 39. Rcb3 {[%emt 0:00:03]} Qc4+ {[%emt 0:00:00]} 40. Kb2 {[%emt 0:00:02]} (40. Kd1 $142) 40... h4 $2 {[%emt 0:00:03]} (40... Qe2) 41. Rc1 {[%emt 0:00:01]} Qe2 {[%emt 0:00:01]} 42. Rc2 {[%emt 0:00:11]} Kd7 {[%emt 0:00:05]} 43. Rbc3 {[%emt 0:00:00]} Qxg2 {[%emt 0:00:06]} 44. Rc7+ {[%emt 0:00:00]} Ke6 {[%emt 0:00:01]} 45. Rxb7 {[%emt 0:00:00][%cal Od2b4] aiming for Bb4!} h3 {[%emt 0:00:01]} 46. Rc6+ $2 {[%emt 0:00:00]} (46. Rxb5 h2 47. d5+ Kf5 48. d6+ Ke6 $11) ({Better is} 46. Bb4 $18 Qxc2+ 47. Kxc2) 46... Kd5 $11 {[%emt 0:00:10]} 47. Rc5+ {[%emt 0:00:00]} (47. Rxb5+ $2 Kxc6 48. Rc5+ Kb6 $19 (48... Kd7 $2 49. Rd5+ Kc6 50. Rc5+ Kb6 51. Rc2 $19)) 47... Kd6 $1 {[%emt 0:00:01]} 48. Rc2 {[%emt 0:00:00][%mdl 8192]} (48. Kc2 $11 Qe2 (48... h2 $2 49. Rcxb5 Ke6 50. R5b6+ Kf5 51. Rf7+ Kg5 52. Rxg7+ Kf5 53. Rxg2 $18) 49. Rcxb5 (49. Rbxb5 h2 $11) 49... Qd3+ (49... h2 50. R5b6+ Kd5 51. Rd7+ Kc4 52. Rb4#) 50. Kd1 (50. Kc1 Qc4+ 51. Kb2 h2 $11) 50... Qf1+ 51. Be1 Qd3+ (51... h2 52. R5b6+ Kd5 53. Rd7+ Kc4 54. Rc7+ Kd5 55. Rc5#) 52. Bd2 Qf1+ 53. Be1 Qd3+ (53... h2 54. R5b6+ Kd5 55. Rd7+ Kc4 56. Rc7+ Kd5 57. Rc5#) 54. Kc1 Qc4+ (54... Qxe3+ 55. Bd2 $11) 55. Kd1 Qd3+) 48... Ke6 $18 {[%emt 0:00:07]} 49. Bb4 {[%emt 0:00:00]} (49. Rxb5 h2 50. d5+ Kf5 51. d6+ Ke6 $11) 49... Qg1 {[%emt 0:00:04]} 50. Rc6+ {[%emt 0:00:02]} (50. Rxb5 h2 51. Re5+ Kf7 52. Rc7+ (52. Rxe4 $2 h1=Q $19) 52... Kg8 53. Rc8+ (53. Rxe4 $2 h1=Q $19) 53... Kf7 54. Rc7+ (54. Rxe4 $2 h1=Q $19) 54... Kg8 55. Rc8+ (55. Rxe4 h1=Q 56. Re8+ Kh7 57. Re5 Qb1+ 58. Ka3 Qhd1) 55... Kf7 56. Rc7+ $11 (56. Rxe4 $2 h1=Q $19)) 50... Kd5 {[%emt 0:00:04]} 51. Rc5+ {[%emt 0:00:05]} (51. Rxb5+ $2 Kxc6 52. Rc5+ Kb7 $19 (52... Kd7 $2 53. Rd5+ Ke6 54. Rd6+ Kf5 55. Rd5+ Kg4 56. Rd7 $19)) 51... Ke6 {[%emt 0:00:01]} 52. Rc6+ {[%emt 0:00:04]} (52. Rcxb5 Qxe3 53. Re7+ (53. Rxg7 $2 Qe2+ 54. Kb3 Qxb5 $19) 53... Kf6 54. Rb6+ Kf5 55. Rf7+ (55. Rxg7 $2 Qxd4+ 56. Bc3 Qxb6+ $19) 55... Kg4 56. Rxg7+ Kf3 57. Rf6+ Ke2 $16) (52. Re7+ $142 Kxe7 53. Rg5+ (53. Rxb5+ $2 Kf6 $19) 53... Kf7 54. Rxg1 h2 55. Rh1 Ke6 56. Rxh2 g6 57. Rh6) 52... Kd5 {[%emt 0:00:00]} 53. Rc5+ {[%emt 0:00:02]} (53. Rxb5+ $2 Kxc6 54. Rc5+ Kb7 (54... Kd7 $2 55. Rd5+ Kc6 56. Rc5+ Kb7 57. Rb5+ Ka6 58. Ra5+ Kb6 59. Rh5 $19) 55. Rb5+ Ka6 56. Ra5+ Kb6 $19) (53. Rbb6 $18 Qf2+ 54. Rc2 Qxc2+ 55. Kxc2 Kc4 56. Bd6 g6 57. Bh2 (57. Rc6+ Kd5 58. Rb6 Ke6 59. Bf4+ Kf7 60. Rxb5 Ke8 61. Rg5 Kf7) 57... g5 58. Rc6+ Kd5 59. Rg6 (59. Rc5+ Ke6 60. d5+ Kf7 61. d6 Ke8 62. Rxg5 Kd7 63. Rg7+ Kd8)) 53... Ke6 {[%emt 0:00:01]} 54. Re5+ $2 {[%emt 0:00:04]} (54. Rcxb5 Qxe3 55. Re7+ (55. Rxg7 $2 Qe2+ 56. Kb3 Qxb5 $19) 55... Kf6 56. Rb6+ Kf5 57. Rf7+ (57. Rxg7 $2 Qxd4+ 58. Kc2 Qxg7 $19) 57... Kg4 58. Rxg7+ Kf3 59. Rf6+ Ke2 $11) (54. Re7+ {mates} Kxe7 55. Rg5+ (55. Rxb5+ $2 Kf6 $19) 55... Kf7 56. Rxg1 h2 57. Rh1 Ke6 58. Rxh2 g6 59. Rg2) 54... Kf6 $11 {[%emt 0:00:02]} 55. Rb6+ {[%emt 0:00:03]} Kf7 {[%emt 0:00:01]} 56. Rb7+ {[%emt 0:00:02]} Kg8 {[%emt 0:00:00]} 57. Rh5 {[%emt 0:00:04]} (57. Rexb5 $2 Qf2+ 58. Kb3 Qxe3+ 59. Bc3 Qh6 $19) 57... h2 {[%emt 0:00:03] ...Qg2+ would now be deadly.} 58. Rb8+ {[%emt 0:00:01]} (58. Rhxb5 $2 h1=Q $19 (58... h1=B $2 59. Bc3 $18) (58... h1=B $2 59. Bc3 $18)) 58... Kf7 {[%emt 0:00:01]} 59. Rbh8 {[%emt 0:00:02]} (59. Rbxb5 Qf2+ (59... h1=B 60. Rbf5+ Kg6 61. Rhg5+ Qxg5 62. Rxg5+ Kxg5 63. Kb3 $11) (59... h1=Q $2 60. Rb7+ Kg6 61. Rxh1 $19) (59... h1=R $2 60. Rb7+ Kg6 61. Rxh1 $19) 60. Kb3 Qxe3+ 61. Bc3 Qg1 62. Rb7+ Kg6 $17) 59... Qf2+ {[%emt 0:00:03]} 60. Kb3 {[%emt 0:00:02] Threatening mate with Rf8+.} Qxe3+ {[%emt 0:00:02]} 61. Bc3 {[%emt 0:00:01]} Qd3 {[%emt 0:00:06] Chess con chili.} 62. Rxh2 {[%emt 0:00:01] Threatens to win with Rb8.} Qc4+ {[%emt 0:00:00]} 63. Kb2 $1 {[%emt 0:00:01][%cal Od4d5] And now d5! would win.} b4 $1 {[%emt 0:00:00]} 64. Be1 {[%emt 0:00:07]} Qxd4+ {[%emt 0:00:01]} 65. Kb1 $2 {[%emt 0:00:01][%mdl 8192]} (65. Ka2 $15) 65... Qd1+ $19 {[%emt 0:00:01]} 66. Kb2 {[%emt 0:00:01]} Qxe1 {[%emt 0:00:02][%mdl 4096] Endgame. KQ-KRR} 67. Rc2 {[%emt 0:00:02]} Qe3 {[%emt 0:00:06]} 68. Rhh2 {[%emt 0:00:02]} Qd4+ {[%emt 0:00:01]} 69. Kb3 {[%emt 0:00:01]} e3 {[%emt 0:00:02]} 70. Rc7+ {[%emt 0:00:02]} Kg8 $2 {[%emt 0:00:04]} (70... Kg6 $19 71. Rg2+ Kf5 72. Rgxg7 Qd5+ 73. Kc2 e2 74. Rgf7+ Kg6) 71. Rcc2 $2 {[%emt 0:00:02][%mdl 8192]} (71. Rc8+ $11 Kf7 72. Rcc2) 71... Qd6 {[%emt 0:00:06]} 72. Rhe2 {[%emt 0:00:03]} Qe7 $2 {[%emt 0:00:02]} (72... Qd3+ $19 {and Black stays clearly on top.} 73. Kxb4 Kf7) 73. Rc4 {[%emt 0:00:02] [#]} g5 $1 {[%emt 0:00:04] White must now prevent ...Qe6.} 74. Rxb4 {[%emt 0:00:03] [#]} Qe6+ $1 {[%emt 0:00:01]} 75. Rc4 $2 {[%emt 0:00:02][%mdl 8192]} (75. Kb2 $17) 75... g4 {[%emt 0:00:03]} 76. Kb4 {[%emt 0:00:03]} g3 {[%emt 0:00:02]} 77. Rcc2 {[%emt 0:00:00]} Kg7 {[%emt 0:00:04]} 78. Kc3 {[%emt 0:00:01]} Qe4 {[%emt 0:00:02]} 79. Rg2 {[%emt 0:00:02]} Qf3 {[%emt 0:00:01]} 80. Rce2 {[%emt 0:00:01]} Kg6 {[%emt 0:00:02]} 81. Kd3 {[%emt 0:00:01]} Kf5 {[%emt 0:00:01]} 82. Ra2 {[%emt 0:00:02]} Kg4 {[%emt 0:00:03]} (82... e2+ $142 83. Kd2 Qd5+ (83... Qxg2 {gets mated.} 84. Ra5+ Kg4 85. Re5 e1=R+ 86. Kxe1 Qf2+ 87. Kd1 Qd4+ 88. Kc2 Qxe5 89. Kb3 g2 90. Kb4 g1=Q 91. Kc4 Qc1+ 92. Kb4 Qec5+ 93. Kb3 Q5c4#) 84. Kxe2 Qxg2+ (84... Qxa2+ 85. Kf3 Qb3+ 86. Ke2 Qc2+ 87. Ke3 Qxg2 88. Kd4 Qe4+ 89. Kc3 g2 90. Kd2 g1=Q 91. Kc3 Qc1+ 92. Kb3 Qec4#) 85. Ke3 Qxa2 86. Kd4 g2 87. Kc5 g1=Q+ (87... g1=R 88. Kd4 Qc2 89. Ke3 Rg3+ 90. Kd4 Rd3#) 88. Kb5 Qd5+ (88... Qb3+ $2 89. Kc6 Qgb6+ 90. Kd7 Q3e6#) 89. Kb4 Qgc5+ 90. Ka4 Qd1#) 83. Rge2 {[%emt 0:00:04]} Kh3 {[%emt 0:00:08]} 84. Rac2 {[%emt 0:00:01]} Qf4 $2 {[%emt 0:00:03]} (84... g2 $19 {has better winning chances.} 85. Rxe3 Qxe3+ (85... g1=Q 86. Rxf3+ Kg4 87. Rcf2 $11) 86. Kxe3 g1=Q+ (86... g1=B+ 87. Kf3 $11) 87. Kd3 Qg6+ 88. Kc3 Qf5) 85. Rb2 $2 {[%emt 0:00:01][%mdl 8192]} (85. Rxe3 $17 Qf5+ 86. Kd2) 85... Qf3 {[%emt 0:00:02]} 86. Rbc2 $1 {[%emt 0:00:01]} Qf4 {[%emt 0:00:01]} 87. Rb2 $1 {[%emt 0:00:00]} Qe5 {[%emt 0:00:00] ( -> ...Kg4)} 88. Ra2 {[%emt 0:00:01]} Kg4 {[%emt 0:00:03] Black mates.} 89. Rab2 {[%emt 0:00:06]} Kf3 {[%emt 0:00:01]} 90. Ra2 {[%emt 0:00:01]} Qd5+ {[%emt 0:00:01]} 91. Kc3 {[%emt 0:00:01]} Qc6+ {[%emt 0:00:03]} 92. Kd4 {[%emt 0:00:02]} Qd6+ {[%emt 0:00:01]} 93. Kc3 {[%emt 0:00:01]} Qc5+ {[%emt 0:00:10] What a bad dream for White.   Weighted Error Value: White=0.78/Black=0.62.  Loses game:     	White=2     	Black=1      Mistake:       	White=4     	Black=6      Inaccurate:     	White=4     	Black=3      OK:         	White=13    	Black=9      Best:        	White=3     	Black=10     Strong:       	White=4     	Black=3} 0-1